fUSD/lending_fUSD_20260701
["ID","MTS","AMOUNT","RATE_DAILY","PERIOD"]
[426825837,1782912638000,-3000.0,0.00017768,2]
[426825842,1782912638000,-362.3,0.00017917,2]
[426825838,1782912638000,-3000.0,0.00017768,2]
[426825841,1782912638000,-600.0,0.000179,6]
[426825831,1782912638000,-3000.0,0.00017768,2]
[426825834,1782912638000,-3000.0,0.00017768,2]
[426825832,1782912638000,-3000.0,0.00017768,2]
[426825833,1782912638000,-3000.0,0.00017768,2]
[426825835,1782912638000,-3000.0,0.00017768,2]
[426825850,1782912638000,-2500.0,0.00018256,2]
[426825851,1782912638000,-1713.18368066,0.00018355,5]
[426825830,1782912638000,-3000.0,0.00017768,2]
[426825878,1782912638000,-1500.0,0.00019027,2]
[426825883,1782912638000,-475.40889693,0.00019141,2]
[426825880,1782912638000,-248.410077,0.00019046,2]
[426825916,1782912638000,-1013.17122739,0.00019903,2]
[426825911,1782912638000,-276.799844,0.000196,2]
[426825914,1782912638000,-166.66,0.00019856,2]
[426825912,1782912638000,-500.0,0.00019675,2]
[426825917,1782912638000,-2479.47711708,0.00019957,2]
[426825918,1782912638000,-344.86487342,0.00019999,2]
[426825920,1782912638000,-16392.82,0.0002,2]
[426825922,1782912638000,-822.0,0.0002,2]
[426825919,1782912638000,-328.65086312,0.0002,2]
[426825925,1782912638000,-343.33,0.00020055,2]
[426825924,1782912638000,-500.0,0.00020012,2]
[426825927,1782912638000,-230.0,0.00020138,2]
[426825921,1782912638000,-298.82,0.0002,2]
[426825915,1782912638000,-8431.61796094,0.000199,2]
[426825926,1782912638000,-8431.61796094,0.000201,2]
[426825930,1782912638000,-328.65086312,0.000202,2]
[426825928,1782912638000,-1278.0,0.00020138,2]
[426825932,1782912638000,-31120.31678818,0.00020271,2]
[426825933,1782912638000,-8431.61796094,0.000203,2]
[426825931,1782912638000,-218.16653382,0.00020202,3]
[426825936,1782912638000,-166.66,0.00020471,2]
[426825939,1782912638000,-195.44435588,0.00020606,3]
[426825935,1782912638000,-328.65086312,0.000204,2]
[426825934,1782912638000,-151.0,0.00020381,2]
[426825938,1782912638000,-328.65086312,0.000206,2]
[426825940,1782912638000,-328.65086312,0.000208,2]
[426825937,1782912638000,-175.20556228,0.00020559,2]
[426825879,1782912638000,-1500.0,0.00019027,2]
[426825929,1782912638000,-1231.0,0.00020138,2]
[426825913,1782912638000,-8431.61796094,0.000197,2]
[426825923,1782912638000,-1500.0,0.00020011,2]
[426825909,1782912638000,-285.05513885,0.00019587,2]
[426825881,1782912638000,-2470.2518,0.00019078,2]
[426825910,1782912638000,-227.13579,0.000196,2]
[426825882,1782912638000,-243.011836,0.00019141,2]
[426825892,1782912638000,-3761.05258272,0.00019234,2]
[426825941,1782912638000,-1129.0,0.00020898,2]
[426825889,1782912638000,-254.88123404,0.000192,2]
[426825886,1782912638000,-250.0,0.00019178,2]
[426825893,1782912638000,-166.66,0.00019241,2]
[426825891,1782912638000,-199.5,0.00019209,2]
[426825890,1782912638000,-8431.61796094,0.000192,2]
[426825884,1782912638000,-250.0,0.00019178,2]
[426825885,1782912638000,-250.0,0.00019178,2]
[426825887,1782912638000,-270.37119352,0.00019178,2]
[426825888,1782912638000,-20537.28,0.00019178,2]
[426825894,1782912638000,-169.92317586,0.00019241,2]
[426825897,1782912638000,-500.0,0.00019337,2]
[426825907,1782912638000,-1500.0,0.00019463,2]
[426825895,1782912638000,-254.88123404,0.000193,2]
[426825903,1782912638000,-31120.31678818,0.00019352,2]
[426825906,1782912638000,-200.0,0.00019438,2]
[426825905,1782912638000,-500.0,0.00019429,2]
[426825896,1782912638000,-8431.61796094,0.000193,2]
[426825904,1782912638000,-500.0,0.00019429,2]
[426825908,1782912638000,-8431.61796094,0.000195,2]
[426825898,1782912638000,-500.0,0.00019337,2]
[426825902,1782912638000,-30035.99199367,0.00019338,12]
[426825901,1782912638000,-500.0,0.00019337,2]
[426825900,1782912638000,-531.03275732,0.00019337,2]
[426825899,1782912638000,-513.64458141,0.00019337,2]
[426825987,1782912639000,-5000.0,0.00021918,2]
[426825989,1782912639000,-343.33,0.00022061,2]
[426825984,1782912639000,-475.40889691,0.00021855,2]
[426825990,1782912639000,-518.5,0.00022203,2]
[426825992,1782912639000,-1343.97991791,0.00022203,2]
[426825978,1782912639000,-151.0,0.00021655,2]
[426825981,1782912639000,-166.66,0.00021701,2]
[426825983,1782912639000,-208.27442596,0.00021765,2]
[426825977,1782912639000,-151.0,0.00021655,2]
[426825982,1782912639000,-151.0,0.0002171,2]
[426825979,1782912639000,-151.0,0.00021655,2]
[426825986,1782912639000,-674.70454458,0.000219,2]
[426825985,1782912639000,-1200.0,0.000219,7]
[426825991,1782912639000,-1981.97778634,0.00022203,2]
[426826001,1782912639000,-1981.97778634,0.00022751,2]
[426825993,1782912639000,-227.91704626,0.00022203,2]
[426825994,1782912639000,-151.0,0.00022353,2]
[426825995,1782912639000,-542.83,0.00022466,2]
[426825996,1782912639000,-1565.81,0.00022466,2]
[426825997,1782912639000,-1981.97778634,0.00022477,2]
[426825998,1782912639000,-500.0,0.00022482,2]
[426825999,1782912639000,-161.61,0.0002265,2]
[426826000,1782912639000,-537.6845,0.00022751,2]
[426826005,1782912639000,-13602.25062841,0.00023,2]
[426826006,1782912639000,-1981.97778634,0.00023025,2]
[426826003,1782912639000,-5538.0,0.00022767,5]
[426826002,1782912639000,-227.91704626,0.00022751,2]
[426825980,1782912639000,-151.0,0.00021655,2]
[426825988,1782912639000,-1981.97778634,0.00021929,2]
[426825972,1782912639000,-151.0,0.00021655,2]
[426825942,1782912639000,-674.70454458,0.00021,2]
[426825975,1782912639000,-151.0,0.00021655,2]
[426825943,1782912639000,-172.72217794,0.0002101,3]
[426826008,1782912639000,-1306.62304621,0.00023038,2]
[426825944,1782912639000,-166.66,0.00021086,2]
[426825945,1782912639000,-160.0,0.00021179,2]
[426825947,1782912639000,-1022.35,0.0002137,2]
[426825951,1782912639000,-457.90611043,0.00021471,2]
[426825948,1782912639000,-674.70454458,0.000214,2]
[426825949,1782912639000,-160.0,0.00021413,2]
[426825956,1782912639000,-2074.0,0.00021655,2]
[426825950,1782912639000,-2479.47711708,0.00021448,2]
[426825953,1782912639000,-500.0,0.00021655,2]
[426825952,1782912639000,-674.70454458,0.000216,2]
[426825954,1782912639000,-1981.97778634,0.00021655,2]
[426825955,1782912639000,-215.58700553,0.00021655,2]
[426825958,1782912639000,-151.0,0.00021655,2]
[426825969,1782912639000,-151.0,0.00021655,2]
[426825957,1782912639000,-151.0,0.00021655,2]
[426825968,1782912639000,-227.91704626,0.00021655,2]
[426825959,1782912639000,-151.0,0.00021655,2]
[426825961,1782912639000,-151.0,0.00021655,2]
[426825960,1782912639000,-151.0,0.00021655,2]
[426825964,1782912639000,-151.0,0.00021655,2]
[426825965,1782912639000,-151.0,0.00021655,2]
[426825962,1782912639000,-151.0,0.00021655,2]
[426825966,1782912639000,-151.0,0.00021655,2]
[426825967,1782912639000,-151.0,0.00021655,2]
[426825970,1782912639000,-151.0,0.00021655,2]
[426825973,1782912639000,-151.0,0.00021655,2]
[426825976,1782912639000,-151.0,0.00021655,2]
[426825974,1782912639000,-151.0,0.00021655,2]
[426826004,1782912639000,-2479.47711708,0.00022938,2]
[426825946,1782912639000,-674.70454458,0.000212,2]
[426826010,1782912639000,-1278.0,0.00023138,2]
[426826044,1782912639000,-176.64527055,0.00023481,2]
[426826040,1782912639000,-194.85277844,0.00023478,2]
[426826042,1782912639000,-162.66196935,0.00023478,2]
[426826041,1782912639000,-161.80257445,0.00023478,2]
[426826043,1782912639000,-286.30590346,0.00023478,2]
[426826047,1782912639000,-220.98982801,0.00023481,2]
[426826045,1782912639000,-162.46974428,0.00023481,2]
[426826052,1782912639000,-350.09508898,0.00023481,2]
[426826060,1782912639000,-735.1,0.00023969,7]
[426826062,1782912639000,-154.0,0.00024,2]
[426826063,1782912639000,-154.0,0.00024,2]
[426826064,1782912639000,-472.0,0.00024,2]
[426826061,1782912639000,-2337.0,0.00023973,3]
[426826051,1782912639000,-156.87808703,0.00023481,2]
[426826053,1782912639000,-266.39423886,0.00023481,2]
[426826054,1782912639000,-156.75526731,0.00023481,2]
[426826055,1782912639000,-1981.97778634,0.00023573,2]
[426826059,1782912639000,-227.91704626,0.00023847,2]
[426826058,1782912639000,-1981.97778634,0.00023847,2]
[426826056,1782912639000,-160.0,0.00023576,3]
[426826057,1782912639000,-13602.25062841,0.00023667,2]
[426826066,1782912639000,-387.0,0.00024,2]
[426826067,1782912639000,-150.0,0.00024,2]
[426826065,1782912639000,-13602.25062841,0.00024,2]
[426826068,1782912639000,-343.33,0.00024066,2]
[426826009,1782912639000,-223.0,0.00023138,2]
[426826069,1782912639000,-400.0,0.00024079,2]
[426826070,1782912639000,-264.99,0.0002411,2]
[426826072,1782912639000,-1981.97778634,0.00024121,2]
[426826046,1782912639000,-155.98094979,0.00023481,2]
[426826049,1782912639000,-156.29882959,0.00023481,2]
[426826071,1782912639000,-180.0,0.0002411,2]
[426826048,1782912639000,-179.1106244,0.00023481,2]
[426826039,1782912639000,-170.72350626,0.00023478,2]
[426826012,1782912639000,-4000.0,0.00023234,3]
[426826013,1782912639000,-1221.34,0.00023257,2]
[426826014,1782912639000,-520.85062762,0.00023299,2]
[426826017,1782912639000,-340.8690979,0.00023333,2]
[426826016,1782912639000,-227.91704626,0.00023299,2]
[426826018,1782912639000,-294.12807726,0.00023333,2]
[426826015,1782912639000,-1981.97778634,0.00023299,2]
[426826020,1782912639000,-13602.25062841,0.00023333,2]
[426826021,1782912639000,-157.91255626,0.00023471,2]
[426826023,1782912639000,-212.11812849,0.00023471,2]
[426826019,1782912639000,-500.0,0.00023333,2]
[426826022,1782912639000,-169.40763675,0.00023471,2]
[426826025,1782912639000,-226.14064145,0.00023471,2]
[426826011,1782912639000,-1231.0,0.00023138,2]
[426826035,1782912639000,-894.56229931,0.00023471,2]
[426826024,1782912639000,-154.4285447,0.00023471,2]
[426826038,1782912639000,-181.72063908,0.00023478,2]
[426826029,1782912639000,-151.27885016,0.00023471,2]
[426826033,1782912639000,-187.97082495,0.00023471,2]
[426826027,1782912639000,-182.03444286,0.00023471,2]
[426826032,1782912639000,-215.99411706,0.00023471,2]
[426826050,1782912639000,-177.16312452,0.00023481,2]
[426826034,1782912639000,-213.89431835,0.00023471,2]
[426826036,1782912639000,-341.04342878,0.00023478,2]
[426826030,1782912639000,-156.35978365,0.00023471,2]
[426826037,1782912639000,-180.70684223,0.00023478,2]
[426826031,1782912639000,-160.68429807,0.00023471,2]
[426826026,1782912639000,-201.45756176,0.00023471,2]
[426826028,1782912639000,-164.27913941,0.00023471,2]
[426826104,1782912640000,-500.0,0.00024666,2]
[426826109,1782912640000,-13602.25062841,0.00024667,2]
[426826103,1782912640000,-500.0,0.00024666,2]
[426826111,1782912640000,-160.19068296,0.00024722,2]
[426826113,1782912640000,-315.82511251,0.00024722,2]
[426826115,1782912640000,-424.23625698,0.00024722,2]
[426826106,1782912640000,-500.0,0.00024666,2]
[426826105,1782912640000,-500.0,0.00024666,2]
[426826108,1782912640000,-545.68791169,0.00024666,2]
[426826107,1782912640000,-500.0,0.00024666,2]
[426826110,1782912640000,-1981.97778634,0.00024669,2]
[426826112,1782912640000,-220.15336581,0.00024722,2]
[426826128,1782912640000,-193.40416368,0.00024722,2]
[426826119,1782912640000,-452.2812829,0.00024722,2]
[426826118,1782912640000,-308.8570894,0.00024722,2]
[426826117,1782912640000,-179.8848983,0.00024722,2]
[426826121,1782912640000,-364.06888573,0.00024722,2]
[426826120,1782912640000,-402.91512352,0.00024722,2]
[426826123,1782912640000,-302.55770033,0.00024722,2]
[426826124,1782912640000,-312.71956729,0.00024722,2]
[426826127,1782912640000,-375.9416499,0.00024722,2]
[426826126,1782912640000,-431.98823412,0.00024722,2]
[426826125,1782912640000,-321.36859614,0.00024722,2]
[426826122,1782912640000,-328.55827883,0.00024722,2]
[426826098,1782912640000,-500.0,0.00024666,2]
[426826116,1782912640000,-338.8152735,0.00024722,2]
[426826102,1782912640000,-500.0,0.00024666,2]
[426826087,1782912640000,-20953.11388093,0.00024626,2]
[426826095,1782912640000,-500.0,0.00024666,2]
[426826076,1782912640000,-237.02923743,0.00024209,2]
[426826075,1782912640000,-1903.01,0.00024174,2]
[426826073,1782912640000,-1203.18,0.00024174,2]
[426826074,1782912640000,-19839.86,0.00024174,2]
[426826078,1782912640000,-151.0,0.00024324,2]
[426826088,1782912640000,-1000.0,0.00024657,2]
[426826089,1782912640000,-758.099753,0.00024657,2]
[426826080,1782912640000,-2337.0,0.00024346,3]
[426826079,1782912640000,-13602.25062841,0.00024333,2]
[426826077,1782912640000,-2337.0,0.00024253,3]
[426826084,1782912640000,-2479.47711708,0.00024429,2]
[426826081,1782912640000,-1981.97778634,0.00024395,2]
[426826086,1782912640000,-475.40889691,0.00024569,2]
[426826085,1782912640000,-160.0,0.0002455,3]
[426826082,1782912640000,-227.91704626,0.00024395,2]
[426826083,1782912640000,-160.0,0.000244,3]
[426826090,1782912640000,-181.42,0.00024658,2]
[426826092,1782912640000,-1000.0,0.00024658,2]
[426826094,1782912640000,-189.79,0.00024658,2]
[426826091,1782912640000,-769.38,0.00024658,2]
[426826101,1782912640000,-500.0,0.00024666,2]
[426826099,1782912640000,-500.0,0.00024666,2]
[426826093,1782912640000,-189.38,0.00024658,2]
[426826096,1782912640000,-500.0,0.00024666,2]
[426826097,1782912640000,-500.0,0.00024666,2]
[426826100,1782912640000,-500.0,0.00024666,2]
[426826130,1782912640000,-427.7886367,0.00024722,2]
[426826132,1782912640000,-593.8447002,0.00024722,2]
[426826129,1782912640000,-211.9886901,0.00024722,2]
[426826159,1782912640000,-154.72377765,0.00024967,2]
[426826161,1782912640000,-2337.0,0.00025,3]
[426826162,1782912640000,-154.0,0.00025,2]
[426826165,1782912640000,-13602.25062841,0.00025,2]
[426826166,1782912640000,-387.0,0.00025,2]
[426826163,1782912640000,-154.0,0.00025,2]
[426826164,1782912640000,-472.0,0.00025,2]
[426826170,1782912640000,-362.3,0.00025084,2]
[426826179,1782912640000,-2825.137538,0.0002546,2]
[426826169,1782912640000,-160.0,0.00025075,3]
[426826178,1782912640000,-13602.25062841,0.00025333,2]
[426826174,1782912640000,-160.0,0.00025196,3]
[426826177,1782912640000,-200.0,0.00025322,2]
[426826172,1782912640000,-342.28,0.000251,14]
[426826173,1782912640000,-152.0,0.00025105,3]
[426826171,1782912640000,-778.8301394,0.00025089,14]
[426826175,1782912640000,-1981.97778634,0.00025217,2]
[426826181,1782912640000,-227.91704626,0.00025491,2]
[426826180,1782912640000,-1981.97778634,0.00025491,2]
[426826182,1782912640000,-160.0,0.0002552,3]
[426826186,1782912640000,-216.83725617,0.00025556,2]
[426826183,1782912640000,-25433.67253812,0.00025542,2]
[426826184,1782912640000,-214.57636726,0.00025556,2]
[426826185,1782912640000,-237.99476168,0.00025556,2]
[426826131,1782912640000,-715.64983945,0.00024722,2]
[426826160,1782912640000,-500.0,0.00024989,2]
[426826168,1782912640000,-206.0,0.00025073,2]
[426826176,1782912640000,-160.0,0.00025245,3]
[426826167,1782912640000,-138441.0,0.00025,2]
[426826133,1782912640000,-682.08685756,0.00024729,2]
[426826158,1782912640000,-4000.0,0.00024948,3]
[426826134,1782912640000,-361.41368446,0.00024729,2]
[426826135,1782912640000,-363.44127817,0.00024729,2]
[426826137,1782912640000,-323.6051489,0.00024729,2]
[426826136,1782912640000,-389.70555687,0.00024729,2]
[426826145,1782912640000,-310.40637502,0.00024732,2]
[426826138,1782912640000,-325.3239387,0.0002473,2]
[426826144,1782912640000,-312.59765918,0.00024732,2]
[426826140,1782912640000,-353.29054109,0.00024732,2]
[426826139,1782912640000,-572.61180692,0.0002473,2]
[426826141,1782912640000,-324.93948856,0.00024732,2]
[426826142,1782912640000,-311.96189957,0.00024732,2]
[426826143,1782912640000,-193.03841669,0.00024732,2]
[426826146,1782912640000,-354.32624905,0.00024732,2]
[426826155,1782912640000,-330.70994268,0.00024942,2]
[426826150,1782912640000,-160.0,0.00024755,3]
[426826154,1782912640000,-1306.6230462,0.00024869,2]
[426826151,1782912640000,-309.10358977,0.00024794,2]
[426826152,1782912640000,-208.88194204,0.00024794,2]
[426826157,1782912640000,-227.91704626,0.00024943,2]
[426826149,1782912640000,-313.51053462,0.00024732,2]
[426826153,1782912640000,-1274.0,0.00024856,3]
[426826147,1782912640000,-700.19017796,0.00024732,2]
[426826148,1782912640000,-532.78847772,0.00024732,2]
[426826156,1782912640000,-1981.97778634,0.00024943,2]
[426826226,1782912641000,-313.75617406,0.00025564,2]
[426826228,1782912641000,-858.91771038,0.00025564,2]
[426826224,1782912641000,-358.2212488,0.00025564,2]
[426826223,1782912641000,-584.55833531,0.00025564,2]
[426826229,1782912641000,-190.97133202,0.00025567,2]
[426826220,1782912641000,-166.80016611,0.00025564,2]
[426826222,1782912641000,-441.97965602,0.00025564,2]
[426826227,1782912641000,-487.98590804,0.00025564,2]
[426826219,1782912641000,-542.12052669,0.00025564,2]
[426826221,1782912641000,-545.16191725,0.00025564,2]
[426826231,1782912641000,-487.40923283,0.00025567,2]
[426826225,1782912641000,-485.40772335,0.00025564,2]
[426826238,1782912641000,-206.02421442,0.00025567,2]
[426826247,1782912641000,-241.89612764,0.00025567,2]
[426826242,1782912641000,-470.26580192,0.00025567,2]
[426826240,1782912641000,-242.02449881,0.00025567,2]
[426826230,1782912641000,-529.93581164,0.00025567,2]
[426826233,1782912641000,-467.94284936,0.00025567,2]
[426826241,1782912641000,-799.18271658,0.00025567,2]
[426826232,1782912641000,-238.23840175,0.00025567,2]
[426826234,1782912641000,-386.07683337,0.00025567,2]
[426826235,1782912641000,-468.89648877,0.00025567,2]
[426826236,1782912641000,-465.60956253,0.00025567,2]
[426826237,1782912641000,-531.48937357,0.00025567,2]
[426826243,1782912641000,-226.56811834,0.00025567,2]
[426826245,1782912641000,-202.49157958,0.00025567,2]
[426826218,1782912641000,-1023.13028634,0.00025564,2]
[426826239,1782912641000,-1050.28526694,0.00025567,2]
[426826213,1782912641000,-386.80832737,0.00025556,2]
[426826191,1782912641000,-636.35438547,0.00025556,2]
[426826205,1782912641000,-162.10458776,0.00025556,2]
[426826244,1782912641000,-191.15041856,0.00025567,2]
[426826189,1782912641000,-473.73766877,0.00025556,2]
[426826190,1782912641000,-245.08727674,0.00025556,2]
[426826187,1782912641000,-320.38136592,0.00025556,2]
[426826188,1782912641000,-440.30673161,0.00025556,2]
[426826192,1782912641000,-508.22291025,0.00025556,2]
[426826193,1782912641000,-204.39553202,0.00025556,2]
[426826195,1782912641000,-463.28563411,0.00025556,2]
[426826194,1782912641000,-359.7697966,0.00025556,2]
[426826196,1782912641000,-678.42192435,0.00025556,2]
[426826197,1782912641000,-256.23484878,0.00025556,2]
[426826201,1782912641000,-492.83741824,0.00025556,2]
[426826203,1782912641000,-208.3957566,0.00025556,2]
[426826200,1782912641000,-266.89838364,0.00025556,2]
[426826202,1782912641000,-453.83655049,0.00025556,2]
[426826199,1782912641000,-546.10332859,0.00025556,2]
[426826204,1782912641000,-282.47652638,0.00025556,2]
[426826206,1782912641000,-210.81047977,0.00025556,2]
[426826215,1782912641000,-536.73737959,0.00025556,2]
[426826209,1782912641000,-279.15219163,0.00025556,2]
[426826216,1782912641000,-395.8964668,0.00025556,2]
[426826214,1782912641000,-423.97738019,0.00025556,2]
[426826212,1782912641000,-563.91247484,0.00025556,2]
[426826217,1782912641000,-170.49849039,0.00025562,2]
[426826210,1782912641000,-482.05289421,0.00025556,2]
[426826211,1782912641000,-647.98235117,0.00025556,2]
[426826208,1782912641000,-180.80537192,0.00025556,2]
[426826207,1782912641000,-469.07935094,0.00025556,2]
[426826248,1782912641000,-243.12996667,0.00025567,2]
[426826198,1782912641000,-604.37268528,0.00025556,2]
[426826250,1782912641000,-151.36387169,0.00025567,2]
[426826282,1782912641000,-500.0,0.00025876,2]
[426826290,1782912641000,-2500.0,0.000259,9]
[426826280,1782912641000,-500.0,0.00025876,2]
[426826289,1782912641000,-250.9187414,0.00025877,2]
[426826281,1782912641000,-500.0,0.00025876,2]
[426826287,1782912641000,-12032.903825,0.00025877,2]
[426826285,1782912641000,-1044858.9334824,0.00025877,2]
[426826284,1782912641000,-627.2968533,0.00025877,2]
[426826286,1782912641000,-3339.6276589,0.00025877,2]
[426826288,1782912641000,-20735.5203852,0.00025877,2]
[426826292,1782912641000,-174.0,0.0002595,5]
[426826294,1782912641000,-1713.899,0.00025992,12]
[426826295,1782912641000,-215.17508352,0.00025992,12]
[426826302,1782912641000,-189.28,0.00026027,7]
[426826293,1782912641000,-496.75296727,0.00025962,2]
[426826298,1782912641000,-154.0,0.00026,2]
[426826304,1782912641000,-227.91704626,0.00026039,2]
[426826297,1782912641000,-154.0,0.00026,2]
[426826300,1782912641000,-13602.25062841,0.00026,2]
[426826301,1782912641000,-387.0,0.00026,2]
[426826303,1782912641000,-1981.97778634,0.00026039,2]
[426826299,1782912641000,-472.0,0.00026,2]
[426826296,1782912641000,-3393.56542574,0.00025996,2]
[426826308,1782912641000,-480.57204888,0.00026112,2]
[426826307,1782912641000,-433.67451234,0.00026112,2]
[426826305,1782912641000,-5528.0,0.000261,5]
[426826249,1782912641000,-279.09768425,0.00025567,2]
[426826283,1782912641000,-1120.4627201,0.00025877,2]
[426826291,1782912641000,-2479.47711708,0.00025919,2]
[426826306,1782912641000,-475.98952336,0.00026112,2]
[426826277,1782912641000,-3000.0,0.00025876,2]
[426826252,1782912641000,-154.72377748,0.00025607,2]
[426826246,1782912641000,-153.46607303,0.00025567,2]
[426826253,1782912641000,-13602.25062841,0.00025667,2]
[426826254,1782912641000,-150.0,0.00025675,7]
[426826251,1782912641000,-5528.0,0.000256,3]
[426826261,1782912641000,-678.22930553,0.00025777,2]
[426826262,1782912641000,-11109.47065424,0.00025777,2]
[426826263,1782912641000,-165.203679,0.00025777,4]
[426826278,1782912641000,-500.0,0.00025876,2]
[426826258,1782912641000,-251.91789287,0.00025763,2]
[426826257,1782912641000,-160.0,0.00025735,3]
[426826255,1782912641000,-204.48850294,0.00025719,2]
[426826260,1782912641000,-1981.97778634,0.00025765,2]
[426826256,1782912641000,-7248.62094266,0.00025722,2]
[426826264,1782912641000,-176.10334246,0.00025777,2]
[426826265,1782912641000,-496.75296727,0.00025777,2]
[426826279,1782912641000,-500.0,0.00025876,2]
[426826259,1782912641000,-220.68229988,0.00025763,2]
[426826272,1782912641000,-208.03,0.00025852,2]
[426826276,1782912641000,-150.0,0.00025876,20]
[426826271,1782912641000,-160.0,0.0002584,3]
[426826274,1782912641000,-508.87450772,0.00025867,2]
[426826275,1782912641000,-154.77411264,0.00025874,7]
[426826270,1782912641000,-2337.0,0.0002584,3]
[426826268,1782912641000,-200.0,0.00025803,2]
[426826267,1782912641000,-1900.0,0.000258,9]
[426826269,1782912641000,-309.10358977,0.00025838,14]
[426826266,1782912641000,-151.0,0.00025786,7]
[426826273,1782912641000,-5970.0,0.00025863,2]
[426826350,1782912642000,-558.30438325,0.00026112,2]
[426826351,1782912642000,-642.73719227,0.00026112,2]
[426826344,1782912642000,-625.43913458,0.00026112,2]
[426826353,1782912642000,-863.97646823,0.00026112,2]
[426826347,1782912642000,-312.44332042,0.00026112,2]
[426826345,1782912642000,-166.54028833,0.00026112,2]
[426826349,1782912642000,-361.61074383,0.00026112,2]
[426826352,1782912642000,-174.24912983,0.00026112,2]
[426826343,1782912642000,-168.9331364,0.00026112,2]
[426826348,1782912642000,-421.94735018,0.00026112,2]
[426826346,1782912642000,-369.75887702,0.00026112,2]
[426826354,1782912642000,-751.88329979,0.00026112,2]
[426826370,1782912642000,-779.41111375,0.0002612,2]
[426826357,1782912642000,-855.5772734,0.00026112,2]
[426826367,1782912642000,-263.01707247,0.0002612,2]
[426826364,1782912642000,-333.60033222,0.0002612,2]
[426826365,1782912642000,-726.88255634,0.0002612,2]
[426826366,1782912642000,-257.07052831,0.0002612,2]
[426826356,1782912642000,-635.96607029,0.00026112,2]
[426826358,1782912642000,-357.82491973,0.00026112,2]
[426826363,1782912642000,-722.82736892,0.0002612,2]
[426826361,1782912642000,-3709.0,0.00026119,5]
[426826362,1782912642000,-1364.17371511,0.0002612,2]
[426826359,1782912642000,-197.9482334,0.00026112,2]
[426826360,1782912642000,-350.67787861,0.00026118,2]
[426826336,1782912642000,-324.20917551,0.00026112,2]
[426826355,1782912642000,-580.21249105,0.00026112,2]
[426826335,1782912642000,-169.30789619,0.00026112,2]
[426826321,1782912642000,-160.44055944,0.00026112,2]
[426826333,1782912642000,-416.79151321,0.00026112,2]
[426826374,1782912642000,-470.6342611,0.0002612,2]
[426826314,1782912642000,-677.630547,0.00026112,2]
[426826315,1782912642000,-408.79106404,0.00026112,2]
[426826309,1782912642000,-439.42180102,0.00026112,2]
[426826312,1782912642000,-490.17455349,0.00026112,2]
[426826313,1782912642000,-848.47251396,0.00026112,2]
[426826310,1782912642000,-660.46009742,0.00026112,2]
[426826311,1782912642000,-631.65022502,0.00026112,2]
[426826316,1782912642000,-539.6546949,0.00026112,2]
[426826318,1782912642000,-617.71417881,0.00026112,2]
[426826317,1782912642000,-233.35700752,0.00026112,2]
[426826326,1782912642000,-657.11655766,0.00026112,2]
[426826322,1782912642000,-313.69310418,0.00026112,2]
[426826320,1782912642000,-512.46969756,0.00026112,2]
[426826319,1782912642000,-904.5625658,0.00026112,2]
[426826324,1782912642000,-728.13777146,0.00026112,2]
[426826323,1782912642000,-805.83024704,0.00026112,2]
[426826327,1782912642000,-413.28117366,0.00026112,2]
[426826325,1782912642000,-533.79676728,0.00026112,2]
[426826338,1782912642000,-390.93011144,0.00026112,2]
[426826329,1782912642000,-365.22292494,0.00026112,2]
[426826340,1782912642000,-161.74318187,0.00026112,2]
[426826341,1782912642000,-223.04909276,0.00026112,2]
[426826342,1782912642000,-414.03400714,0.00026112,2]
[426826337,1782912642000,-396.4856489,0.00026112,2]
[426826332,1782912642000,-356.69719386,0.00026112,2]
[426826328,1782912642000,-605.11540065,0.00026112,2]
[426826334,1782912642000,-564.95305276,0.00026112,2]
[426826369,1782912642000,-682.89402505,0.0002612,2]
[426826375,1782912642000,-677.92858964,0.0002612,2]
[426826432,1782912642000,-500.0,0.00026255,2]